bitfinex/quotes_BTCUSD_20251231
["timestamp","ask_amount","ask_price","bid_price","bid_amount"]
[1767176780277,0.01132,88821.0,88805.0,0.02475908]
[1767176780480,0.01132,88821.0,88809.0,0.04886]
[1767176780702,0.01132,88821.0,88809.0,0.0002]
[1767176783256,0.01125872,88820.0,88809.0,0.0002]
[1767176783451,0.02257859,88821.0,88809.0,0.0002]
[1767176783892,0.04511,88820.0,88809.0,0.0002]
[1767176786138,0.01132,88821.0,88809.0,0.0002]
[1767176786999,0.02257859,88821.0,88809.0,0.0002]
[1767176787850,0.01125872,88820.0,88809.0,0.0002]
[1767176789861,0.05636872,88820.0,88809.0,0.0002]
[1767176790019,0.04511,88820.0,88809.0,0.0002]
[1767176790624,0.04511,88820.0,88810.0,0.26078268]
[1767176799660,0.05636872,88820.0,88810.0,0.26078268]
[1767176801224,0.05636872,88820.0,88809.0,0.0002]
[1767176801225,0.01125897,88818.0,88809.0,0.0002]
[1767176801732,0.01125961,88813.0,88809.0,0.0002]
[1767176801873,0.01125961,88813.0,88804.0,0.0002219]
[1767176801874,0.05669012,88809.0,88804.0,0.0002219]
[1767176802084,0.04543,88809.0,88804.0,0.0002219]
[1767176802978,0.04543,88806.0,88804.0,0.00035523]
[1767176803535,0.01125999,88810.0,88804.0,0.00035523]
[1767176804320,0.04543,88809.0,88804.0,0.00035523]
[1767176804582,0.01126024,88808.0,88804.0,0.00035523]
[1767176805357,0.01126037,88807.0,88804.0,0.00035523]
[1767176805553,0.01132,88806.0,88804.0,0.00035523]
[1767176807583,0.01132,88806.0,88786.0,0.0001463]
[1767176807584,0.01126189,88795.0,88786.0,0.0001463]
[1767176807782,0.04858,88790.0,88786.0,0.0001463]
[1767176807957,0.01132,88789.0,88788.0,0.04982]
[1767176808157,0.01132,88791.0,88790.0,0.04982]
[1767176808360,0.01132,88795.0,88789.0,0.04456]
[1767176808958,0.011174,88795.0,88789.0,0.04456]
[1767176809534,0.011174,88795.0,88788.0,0.0001063]
[1767176816174,0.011174,88795.0,88788.0,0.0333463]
[1767176816377,0.011174,88795.0,88788.0,0.0001063]
[1767176819805,0.04858,88801.0,88788.0,0.0001063]
[1767176820099,0.01132,88800.0,88790.0,0.26078268]
[1767176820452,0.02258126,88800.0,88790.0,0.26078268]
[1767176821502,0.01132,88800.0,88790.0,0.26078268]
[1767176822115,0.02258126,88800.0,88788.0,0.0001063]
[1767176822302,0.02258126,88800.0,88790.0,0.26078268]
[1767176822884,0.07116126,88800.0,88790.0,0.26078268]
[1767176823888,0.07116126,88800.0,88788.0,0.0001063]
[1767176823889,0.01126138,88799.0,88788.0,0.0001063]
[1767176824095,0.01126138,88799.0,88790.0,0.29402268]
[1767176825026,0.01132,88800.0,88790.0,0.29402268]
[1767176825960,0.01132,88800.0,88790.0,0.26078268]
[1767176826748,0.05842,88800.0,88790.0,0.26078268]
[1767176828388,0.04823,88789.0,88788.0,0.0001063]
[1767176828605,0.01132,88791.0,88788.0,0.0001063]
[1767176828762,0.01132,88791.0,88788.0,0.0333463]
[1767176829530,0.01077,88791.0,88788.0,0.0333463]
[1767176830340,0.06756343,88806.0,88788.0,0.0333463]
[1767176830341,0.04823,88809.0,88794.0,0.05630964]
[1767176830499,0.01132,88803.0,88799.0,0.53506382]
[1767176830703,0.01132,88803.0,88799.0,0.04673846]
[1767176832470,0.000146,88808.0,88799.0,0.04673846]
[1767176832637,0.000146,88808.0,88799.0,0.05799984]
[1767176833362,0.000146,88808.0,88799.0,0.04673846]
[1767176838328,0.000146,88808.0,88799.0,0.01349846]
[1767176838885,0.06755645,88815.0,88799.0,0.01349846]
[1767176838886,0.0001463,88817.0,88813.0,0.01125961]
[1767176839082,0.0001463,88817.0,88809.0,0.02126]
[1767176839363,0.0001463,88817.0,88807.0,0.27204305]
[1767176839924,0.0001463,88817.0,88807.0,0.26078268]
[1767176840132,0.0001463,88817.0,88810.0,0.01125999]
[1767176840336,0.0001463,88817.0,88808.0,0.06756113]
[1767176840652,0.0001463,88817.0,88809.0,0.01126012]
[1767176840852,0.0001463,88817.0,88807.0,0.26078268]
[1767176841052,0.0001463,88817.0,88809.0,0.01126012]
[1767176841268,0.0001463,88817.0,88807.0,0.26078268]
[1767176841511,0.0001463,88817.0,88808.0,0.01126024]
[1767176841988,0.0001463,88817.0,88810.0,0.01125999]
[1767176842148,0.0001463,88817.0,88809.0,0.01126012]
[1767176842354,0.0001463,88817.0,88810.0,0.01125999]
[1767176843294,0.0001463,88817.0,88809.0,0.01126012]
[1767176843453,0.0001463,88817.0,88810.0,0.01125999]
[1767176843655,0.0001463,88817.0,88809.0,0.01126012]
[1767176843862,0.0001463,88817.0,88810.0,0.01125999]
[1767176844544,0.0001463,88817.0,88809.0,0.01126012]
[1767176844748,0.0001463,88817.0,88810.0,0.01125999]
[1767176845168,0.0001463,88817.0,88808.0,0.06756097]
[1767176845640,0.0001463,88817.0,88809.0,0.01126012]
[1767176845815,0.0001463,88817.0,88810.0,0.01125999]
[1767176846182,0.0001463,88817.0,88808.0,0.06756097]
[1767176846592,0.0001463,88817.0,88810.0,0.01125999]
[1767176846923,0.0001463,88817.0,88808.0,0.01126024]
[1767176847350,0.0001463,88817.0,88807.0,0.32834487]
[1767176847549,0.0001463,88817.0,88808.0,0.01126024]
[1767176847905,0.0001463,88817.0,88807.0,0.32834487]
[1767176848107,0.0001463,88817.0,88808.0,0.01126024]
[1767176848760,0.0001463,88817.0,88807.0,0.26078268]
[1767176848987,0.0001463,88817.0,88807.0,0.27204305]
[1767176849161,0.0001463,88817.0,88807.0,0.26078268]
[1767176850113,0.0001463,88817.0,88805.0,0.01126062]
[1767176851146,0.0001463,88817.0,88806.0,0.0112605]
[1767176852395,0.0001463,88817.0,88809.0,0.01126012]
[1767176852560,0.0001463,88817.0,88806.0,0.0112605]
[1767176852898,0.0001463,88817.0,88805.0,0.01126062]
[1767176853707,0.000549,88805.0,88802.0,0.01132]
[1767176854065,0.000549,88805.0,88802.0,0.022581]
[1767176854383,0.04823,88816.0,88802.0,0.01132]
[1767176854582,0.04823,88813.0,88799.0,0.00051447]
[1767176854770,0.04823,88810.0,88801.0,0.01132]
[1767176854970,0.10453033,88810.0,88801.0,0.010771]
[1767176855512,0.01126012,88809.0,88801.0,0.010771]
[1767176855689,0.05948999,88810.0,88801.0,0.010771]
[1767176856073,0.01126037,88807.0,88801.0,0.010771]
[1767176856486,0.01126024,88808.0,88801.0,0.010771]
[1767176857624,0.01126037,88807.0,88801.0,0.010771]
[1767176858206,0.01126024,88808.0,88801.0,0.010771]
[1767176859949,0.01126037,88807.0,88801.0,0.010771]
[1767176860556,0.01126024,88808.0,88801.0,0.010771]
[1767176860714,0.01126012,88809.0,88801.0,0.010771]
[1767176861646,0.01126037,88807.0,88801.0,0.010771]
[1767176861971,0.01126012,88809.0,88801.0,0.010771]
[1767176862478,0.04851,88806.0,88799.0,0.00051447]
[1767176862770,0.0597705,88806.0,88799.0,0.00051447]
[1767176862932,0.04851,88806.0,88799.0,0.00051447]
[1767176863470,0.0597705,88806.0,88799.0,0.00051447]
[1767176863820,0.05977075,88804.0,88799.0,0.00051447]
[1767176864021,0.01126088,88803.0,88799.0,4.7e-07]
[1767176864225,0.04851,88802.0,88799.0,4.7e-07]
[1767176864464,0.059771,88802.0,88799.0,4.7e-07]
[1767176865300,0.04851,88802.0,88799.0,4.7e-07]
[1767176866244,0.059771,88802.0,88799.0,4.7e-07]
[1767176867417,0.04851,88802.0,88799.0,4.7e-07]
[1767176867570,0.059771,88802.0,88799.0,4.7e-07]
[1767176870214,0.059771,88802.0,88788.0,0.0001063]
[1767176870215,0.01126151,88798.0,88788.0,0.0001063]
[1767176870418,0.04851,88799.0,88788.0,0.0114263]
[1767176870617,0.05977138,88799.0,88788.0,0.0114263]
[1767176870933,0.04851,88799.0,88788.0,0.0114263]
[1767176871256,0.05977138,88799.0,88788.0,0.0114263]
[1767176872885,0.01126151,88798.0,88788.0,0.0114263]
[1767176873066,0.04851,88799.0,88788.0,0.0114263]
[1767176874644,0.05977138,88799.0,88788.0,0.0114263]
[1767176875149,0.04851,88799.0,88788.0,0.0114263]
[1767176875324,0.05977138,88799.0,88788.0,0.0114263]
[1767176875479,0.04851,88796.0,88788.0,0.0114263]
[1767176881180,0.047997,88796.0,88788.0,0.0114263]
[1767176884879,0.04851,88801.0,88788.0,0.0114263]
[1767176890962,0.05977113,88801.0,88788.0,0.0114263]
[1767176891795,0.04851,88801.0,88788.0,0.0114263]
[1767176892240,0.05977113,88801.0,88788.0,0.0114263]
[1767176892744,0.04851,88801.0,88788.0,0.0114263]
[1767176893020,0.05977113,88801.0,88788.0,0.0114263]
[1767176893615,0.05922126,88800.0,88788.0,0.0114263]
[1767176893799,0.04796,88800.0,88788.0,0.0114263]
[1767176894365,0.05922126,88800.0,88788.0,0.0114263]
[1767176894866,0.04796,88800.0,88788.0,0.0114263]
[1767176898134,0.01126138,88799.0,88788.0,0.0114263]
[1767176898333,0.05922138,88799.0,88788.0,0.0114263]
[1767176898539,0.04796,88799.0,88788.0,0.0114263]
[1767176899951,0.05922138,88799.0,88788.0,0.0114263]
[1767176901242,0.04796,88799.0,88788.0,0.0114263]
[1767176901444,0.05922138,88799.0,88788.0,0.0114263]
[1767176901845,0.04796,88799.0,88788.0,0.0114263]
[1767176905042,0.01132,88802.0,88788.0,0.0114263]
[1767176905043,0.05922113,88801.0,88788.0,0.0114263]
[1767176905256,0.05922126,88800.0,88788.0,0.0114263]
[1767176906973,0.04796,88800.0,88788.0,0.0114263]
[1767176915554,0.04796,88800.0,88788.0,0.0085426]
[1767176915986,0.04796,88800.0,88788.0,0.01980538]
[1767176916118,0.04796,88800.0,88788.0,0.0085426]
[1767176920143,0.05922126,88800.0,88788.0,0.0085426]
[1767176920369,0.04963,88799.0,88788.0,0.0085426]
[1767176930107,0.04963,88799.0,88786.0,0.0001463]
[1767176932809,0.04963,88799.0,88786.0,0.01140933]
[1767176933039,0.04963,88799.0,88786.0,0.0001463]
[1767176933289,0.04963,88799.0,88786.0,0.01140933]
[1767176934139,0.04963,88799.0,88786.0,0.0001463]
[1767176934392,0.06089138,88799.0,88786.0,0.0001463]
[1767176934890,0.04963,88799.0,88786.0,0.0001463]
[1767176935458,0.06089138,88799.0,88786.0,0.0001463]
[1767176935685,0.04963,88796.0,88786.0,0.0001463]
[1767176938099,0.26088598,88800.0,88786.0,0.0001463]
[1767176938305,0.04963,88799.0,88786.0,0.0001463]
[1767176940565,0.04963,88799.0,88786.0,0.01140933]
[1767176940753,0.04963,88799.0,88786.0,0.0001463]
[1767176943726,0.04963,88799.0,88786.0,0.01140933]
[1767176944543,0.04963,88799.0,88786.0,0.0001463]
[1767176945239,0.04963,88799.0,88786.0,0.01140933]
[1767176945963,0.04963,88799.0,88786.0,0.0001463]
[1767176946348,0.04963,88799.0,88786.0,0.0339606]
[1767176947377,0.01132,88802.0,88787.0,0.02178]
[1767176947726,0.022581,88802.0,88787.0,0.02178]
[1767176948613,0.01132,88802.0,88787.0,0.02178]
[1767176949376,0.01132,88802.0,88787.0,0.03304291]
[1767176949578,0.01132,88802.0,88787.0,0.02178]
[1767176950381,0.01132,88802.0,88787.0,0.02183579]
[1767176950604,0.01132,88802.0,88787.0,0.0330987]
[1767176952357,0.05873,88802.0,88787.0,0.0330987]
[1767176953240,0.05873,88802.0,88787.0,0.02183579]
[1767176953414,0.05873,88802.0,88787.0,0.0330987]
[1767176954737,0.05873,88802.0,88787.0,0.02183579]
[1767176956269,0.05873,88802.0,88790.0,0.26088598]
[1767176958486,0.069991,88802.0,88790.0,0.26088598]
[1767176958709,0.069991,88802.0,88787.0,0.02183579]
[1767176958869,0.04886,88801.0,88790.0,0.26088598]
[1767176959438,0.06012113,88801.0,88790.0,0.26088598]
[1767176959637,0.04886,88801.0,88790.0,0.26088598]
[1767176961498,0.04886,88801.0,88787.0,0.0113187]
[1767176961703,0.06012113,88801.0,88787.0,5.579e-05]
[1767176961929,0.04886,88801.0,88787.0,5.579e-05]
[1767176963386,0.06012113,88801.0,88787.0,5.579e-05]
[1767176964050,0.01126126,88800.0,88787.0,5.579e-05]
[1767176964166,0.01126138,88799.0,88787.0,5.579e-05]
[1767176964368,0.06012138,88799.0,88785.0,0.0259834]
[1767176964571,0.04886,88794.0,88777.0,0.01364476]
[1767176964772,0.04886,88794.0,88779.0,0.03304354]
[1767176965393,0.04886,88794.0,88779.0,0.04430746]
[1767176965808,0.04886,88794.0,88779.0,0.03304354]
[1767176966014,0.04886,88794.0,88780.0,0.01126379]
[1767176966192,0.04886,88794.0,88781.0,0.01126367]
[1767176966387,0.04886,88794.0,88779.0,0.04430746]
[1767176966971,0.04886,88794.0,88779.0,0.03304354]
[1767176968233,0.04886,88794.0,88779.0,0.04430746]
[1767176968610,0.04886,88794.0,88779.0,0.03304354]
[1767176968917,0.04886,88789.0,88778.0,0.01132]
[1767176970053,0.04886,88789.0,88778.0,0.02258405]
[1767176970203,0.04831,88789.0,88778.0,0.01132]
[1767176970401,0.04831,88789.0,88781.0,0.01126367]
[1767176970751,0.04831,88789.0,88782.0,0.01126354]
[1767176971627,0.04831,88789.0,88783.0,0.01126341]
[1767176971833,0.04831,88789.0,88782.0,0.01126354]
[1767176972145,0.04831,88789.0,88783.0,0.01126341]
[1767176972553,0.06018,88794.0,88784.0,0.06757974]
[1767176972752,0.06018,88794.0,88783.0,0.01126341]
[1767176972956,0.06018,88794.0,88784.0,0.01126329]
[1767176973254,0.06018,88794.0,88783.0,0.01126341]
[1767176973475,0.06018,88794.0,88784.0,0.01126329]
[1767176973868,0.06018,88794.0,88783.0,0.01126341]
[1767176975871,0.06018,88794.0,88784.0,0.01126329]
[1767176976078,0.06018,88794.0,88783.0,0.01126341]
[1767176977374,0.06018,88794.0,88784.0,0.01126329]
[1767176977580,0.06018,88794.0,88783.0,0.01037749]
[1767176977804,0.06018,88794.0,88785.0,0.01126316]
[1767176978202,0.06018,88794.0,88784.0,0.01126329]
[1767176979120,0.06018,88794.0,88785.0,0.01126316]
[1767176979418,0.06018,88794.0,88784.0,0.01126329]
[1767176979959,0.06018,88794.0,88785.0,0.01126316]
[1767176980160,0.06018,88794.0,88783.0,0.01037749]
[1767176980364,0.06018,88794.0,88784.0,0.01126329]
[1767176980621,0.06018,88794.0,88785.0,0.01126316]
[1767176981197,0.06018,88794.0,88783.0,0.01037749]
[1767176981715,0.06018,88794.0,88784.0,0.01126329]
[1767176982732,0.06018,88794.0,88783.0,0.01037749]
[1767176982733,0.01132,88794.0,88781.0,0.02233]
[1767176983022,0.01132,88794.0,88786.0,0.01126303]
[1767176983225,0.01132,88794.0,88786.0,0.06757783]
[1767176983595,0.01132,88794.0,88787.0,0.01126291]
[1767176984087,0.01132,88794.0,88789.0,0.01126265]
[1767176984288,0.01132,88794.0,88787.0,0.06757706]
[1767176984694,0.01132,88794.0,88788.0,0.01126278]
[1767176984901,0.01132,88794.0,88787.0,0.01126291]
[1767176986217,0.01132,88794.0,88786.0,0.01126303]
[1767176986423,0.01132,88794.0,88787.0,0.01126291]
[1767176987205,0.01132,88794.0,88788.0,0.01126278]
[1767176987405,0.01132,88794.0,88787.0,0.01126291]
[1767176988042,0.01132,88794.0,88788.0,0.01126278]
[1767176988385,0.01132,88794.0,88790.0,0.01126252]
[1767176988595,0.01132,88794.0,88789.0,0.01126265]
[1767176988766,0.01132,88794.0,88788.0,0.01126278]
[1767176988963,0.01132,88794.0,88789.0,0.01126265]
[1767176989706,0.01132,88794.0,88790.0,0.01126252]
[1767176989911,0.01132,88794.0,88789.0,0.01126265]
[1767176990108,0.01132,88794.0,88788.0,0.01126278]
[1767176990109,0.0001463,88808.0,88793.0,0.01126214]
[1767176990329,0.01132,88803.0,88795.0,0.01126189]
[1767176991975,0.01132,88803.0,88794.0,0.01126202]
[1767176992166,0.01132,88803.0,88795.0,0.01126189]
[1767176993192,0.01132,88803.0,88796.0,0.01126176]
[1767176993425,0.01132,88803.0,88795.0,0.01126189]
[1767176996633,0.01132,88803.0,88794.0,0.01126202]
[1767176996814,0.01132,88803.0,88795.0,0.01126189]
[1767176997181,0.01132,88803.0,88793.0,0.06757252]
[1767176997382,0.01132,88803.0,88794.0,0.01126202]
[1767176998531,0.01132,88803.0,88793.0,0.01126214]
[1767176998899,0.04682,88807.0,88795.0,0.01126189]
[1767176999435,0.04682,88807.0,88794.0,0.01126202]
[1767176999659,0.04682,88807.0,88795.0,0.01126189]
[1767177000310,0.04682,88807.0,88794.0,0.01126202]
[1767177000516,0.04682,88807.0,88795.0,0.01126189]
[1767177001575,0.04682,88807.0,88794.0,0.01126202]
[1767177001753,0.04682,88807.0,88795.0,0.01126189]
[1767177003181,0.04682,88807.0,88794.0,0.01126202]
[1767177003393,0.04682,88807.0,88795.0,0.01126189]
[1767177003973,0.04682,88807.0,88796.0,0.01126176]
[1767177004176,0.04682,88807.0,88795.0,0.01126189]
[1767177004920,0.04682,88807.0,88796.0,0.01126176]
[1767177005261,0.04682,88807.0,88795.0,0.01126189]
[1767177005462,0.04682,88807.0,88794.0,0.01126202]
[1767177005654,0.04682,88807.0,88795.0,0.01126189]
[1767177005878,0.04682,88807.0,88794.0,0.01126202]
[1767177006088,0.04682,88807.0,88795.0,0.01126189]
[1767177006284,0.04682,88807.0,88794.0,0.01126202]
[1767177006653,0.04682,88807.0,88795.0,0.01126189]
[1767177007435,0.04682,88807.0,88796.0,0.01126176]
[1767177007614,0.04682,88807.0,88795.0,0.01126189]
[1767177007805,0.04682,88807.0,88797.0,0.26091329]
[1767177007992,0.0001463,88808.0,88804.0,0.01126075]
[1767177008324,0.0001463,88808.0,88802.0,0.011261]
[1767177008325,0.0001463,88808.0,88805.0,0.01126062]
[1767177008735,0.0001463,88808.0,88805.0,0.02475908]
[1767177008907,0.00051444,88811.0,88808.0,0.01126024]
[1767177009316,0.00051444,88811.0,88807.0,0.01126037]
[1767177009498,0.00051444,88811.0,88808.0,0.01126024]
[1767177009705,0.00051444,88811.0,88808.0,0.06756109]
[1767177010712,0.00051444,88811.0,88808.0,0.01126024]
[1767177011124,0.00051444,88811.0,88807.0,0.06756161]
[1767177011125,0.00051444,88811.0,88807.0,0.01126037]
[1767177011289,0.00051444,88811.0,88805.0,0.08106189]
[1767177012908,0.00051444,88811.0,88805.0,0.02475908]
[1767177013349,0.00051444,88811.0,88806.0,0.0112605]
[1767177014345,0.00051444,88811.0,88805.0,0.02475908]
[1767177014727,0.00051444,88811.0,88806.0,0.0112605]
[1767177016858,0.00051444,88811.0,88807.0,0.01126037]
[1767177017397,0.00051444,88811.0,88808.0,0.01126024]
[1767177018337,0.00051444,88811.0,88808.0,0.06756115]
[1767177018744,0.00051444,88811.0,88808.0,0.06756105]
[1767177019297,0.00051444,88811.0,88808.0,0.01126024]
[1767177019493,0.00051444,88811.0,88807.0,0.01071137]
[1767177019701,0.00051444,88811.0,88808.0,0.01126024]
[1767177020298,0.00051444,88811.0,88808.0,0.06756141]
[1767177020504,0.00051444,88811.0,88808.0,0.01126024]
[1767177021104,0.00051444,88811.0,88807.0,0.01071137]
[1767177021505,0.00051444,88811.0,88808.0,0.01126024]
[1767177023897,0.00051444,88811.0,88807.0,0.06701294]
[1767177023898,0.00051444,88811.0,88806.0,0.0112605]
[1767177024098,0.00051444,88811.0,88807.0,0.01126037]
[1767177024869,0.00051444,88811.0,88808.0,0.01126024]
[1767177025226,0.00051444,88811.0,88807.0,0.01126037]
[1767177025756,0.00051444,88811.0,88806.0,0.06756261]
[1767177025961,0.00051444,88811.0,88807.0,0.01126037]
[1767177026336,0.00051444,88811.0,88806.0,0.06756261]
[1767177026665,0.00051444,88811.0,88807.0,0.01126037]
[1767177026863,0.00051444,88811.0,88806.0,0.06756261]
[1767177027048,0.00051444,88811.0,88807.0,0.01126037]
[1767177027869,0.00051444,88811.0,88808.0,0.06756089]
[1767177028640,0.00051444,88811.0,88807.0,0.01126037]
[1767177029475,0.00051444,88811.0,88808.0,0.01126024]
[1767177029858,0.00051444,88811.0,88807.0,0.01126037]
[1767177030242,0.00051444,88811.0,88808.0,0.01126024]
[1767177030668,0.00051444,88811.0,88807.0,0.01126037]
[1767177031167,0.00051444,88811.0,88808.0,0.01126024]
[1767177031605,0.00051444,88811.0,88807.0,0.01126037]
[1767177031801,0.00051444,88811.0,88808.0,0.06756088]
[1767177032339,0.00051444,88811.0,88808.0,0.01126024]
[1767177033047,0.00051444,88811.0,88807.0,0.01126037]
[1767177033246,0.00051444,88811.0,88808.0,0.01126024]
[1767177033711,0.00051444,88811.0,88807.0,0.01126037]
[1767177034115,0.00051444,88811.0,88808.0,0.01126024]
[1767177034307,0.00051444,88811.0,88807.0,0.01126037]
[1767177037772,0.00051444,88811.0,88806.0,0.06756261]
[1767177038096,0.00051444,88811.0,88807.0,0.01126037]
[1767177038749,0.00051444,88811.0,88808.0,0.06756147]
[1767177039632,0.00051444,88811.0,88808.0,0.01126024]
[1767177040894,0.00051444,88811.0,88808.0,0.06756098]
[1767177041285,0.00051444,88811.0,88806.0,0.0112605]
[1767177041582,0.00051444,88811.0,88807.0,0.06756195]
[1767177042127,0.00051444,88811.0,88808.0,0.01126024]
[1767177042329,0.00051444,88811.0,88807.0,0.01126037]
[1767177043452,0.00051444,88811.0,88806.0,0.0112605]
[1767177043857,0.00051444,88811.0,88803.0,0.01132]
[1767177044054,0.00055,88806.0,88803.0,0.01132]
[1767177044473,0.00051444,88811.0,88803.0,0.01132]
[1767177051701,0.00051444,88811.0,88803.0,0.02258088]
[1767177051902,0.00051444,88811.0,88803.0,0.01132]
[1767177056888,0.00051444,88811.0,88804.0,0.03380896]
[1767177061085,0.04598,88810.0,88804.0,0.02482339]
[1767177061291,0.04653,88804.0,88786.0,0.01140933]
[1767177061507,0.26075727,88796.0,88788.0,0.03380896]
[1767177061670,0.26075727,88800.0,88786.0,0.0001463]
[1767177061671,0.04598,88795.0,88786.0,0.0001463]
[1767177062832,0.04598,88795.0,88787.0,0.01126291]
[1767177063164,0.04598,88795.0,88786.0,0.01140933]
[1767177063348,0.04598,88795.0,88786.0,0.0001463]
[1767177064046,0.04598,88795.0,88791.0,0.01349846]
[1767177064990,0.04598,88795.0,88791.0,0.01294846]
[1767177073847,0.01126113,88801.0,88791.0,0.01294846]
[1767177073848,0.04757,88800.0,88791.0,0.01294846]
[1767177074397,0.05883126,88800.0,88791.0,0.01294846]
[1767177075210,0.01126138,88799.0,88791.0,0.01294846]
[1767177075413,0.05883138,88799.0,88791.0,0.01294846]
[1767177076211,0.01126151,88798.0,88791.0,0.01294846]
[1767177076418,0.05883138,88799.0,88791.0,0.01294846]
[1767177076652,0.04757,88799.0,88791.0,0.01294846]
[1767177077461,0.02422846,88803.0,88791.0,0.01294846]
[1767177078640,0.07152846,88803.0,88791.0,0.01294846]
[1767177078854,0.08278934,88803.0,88791.0,0.01294846]
[1767177079173,0.01126113,88801.0,88791.0,0.01294846]
[1767177079880,0.058561,88802.0,88791.0,0.01294846]
[1767177080036,0.01126113,88801.0,88791.0,0.01294846]
[1767177080582,0.01126113,88801.0,88790.0,0.26075727]
[1767177080583,0.01126164,88797.0,88790.0,0.26075727]
[1767177080785,0.01126189,88795.0,88786.0,0.0001463]
[1767177081369,0.01126176,88796.0,88786.0,0.0001463]
[1767177081568,0.01126164,88797.0,88786.0,0.0001463]
[1767177081753,0.01126189,88795.0,88786.0,0.0001463]
[1767177082155,0.01126176,88796.0,88786.0,0.0001463]
[1767177082700,0.01126164,88797.0,88786.0,0.0001463]
[1767177083064,0.01126176,88796.0,88786.0,0.0001463]
[1767177084245,0.01126189,88795.0,88786.0,0.0001463]
[1767177085310,0.01126176,88796.0,88786.0,0.0001463]
[1767177085543,0.01126189,88795.0,88786.0,0.0001463]
[1767177086508,0.0585624,88791.0,88786.0,0.0001463]
[1767177087071,0.0473,88791.0,88786.0,0.0001463]
[1767177088528,0.0585624,88791.0,88786.0,0.0001463]
[1767177088734,0.0473,88791.0,88786.0,0.0001463]
[1767177089379,0.01126252,88790.0,88786.0,0.0001463]
[1767177089587,0.0473,88789.0,88786.0,0.0001463]
[1767177089835,0.05856265,88789.0,88786.0,0.0001463]
[1767177090029,0.11487593,88789.0,88786.0,0.0001463]
[1767177090438,0.05856265,88789.0,88786.0,0.0001463]
[1767177090603,0.0473,88789.0,88786.0,0.0001463]
[1767177091001,0.0473,88792.0,88777.0,0.0001463]
[1767177091239,0.0473,88792.0,88772.0,0.0002]
[1767177091240,0.0473,88783.0,88772.0,0.0002]
[1767177091517,0.0473,88767.0,88750.0,0.0112676]
[1767177091711,0.03311348,88766.0,88757.0,0.00013958]
[1767177091839,0.01056791,88765.0,88757.0,0.00013958]
[1767177092021,0.01056791,88764.0,88757.0,0.00013958]
[1767177092227,0.01001891,88763.0,88757.0,0.00013958]
[1767177092428,0.03382921,88763.0,88757.0,0.00013958]
[1767177092650,0.03390895,88763.0,88757.0,0.00013958]
[1767177093080,0.03390895,88763.0,88757.0,0.00022218]
[1767177093586,0.0473,88762.0,88757.0,0.00022218]
[1767177093728,0.0473,88762.0,88757.0,1.8e-07]
[1767177094359,0.05856608,88762.0,88757.0,1.8e-07]
[1767177094719,0.0473,88759.0,88757.0,1.8e-07]
[1767177094870,0.01126608,88762.0,88757.0,1.8e-07]
[1767177094871,0.05858,88758.0,88757.0,1.8e-07]
[1767177095072,0.01128,88758.0,88757.0,1.8e-07]
[1767177095251,0.011058,88758.0,88757.0,1.8e-07]
[1767177096312,0.03390895,88763.0,88752.0,0.0001814]
[1767177096514,0.01128,88758.0,88752.0,0.00013895]
[1767177097472,0.02254659,88758.0,88752.0,0.00013895]
[1767177098220,0.04863,88757.0,88752.0,0.00013895]
[1767177098591,0.04863,88757.0,88752.0,9.5e-07]
[1767177098809,0.04863,88754.0,88752.0,9.5e-07]
[1767177099730,0.03383421,88753.0,88752.0,9.5e-07]
[1767177102307,0.08246421,88753.0,88752.0,9.5e-07]
[1767177104929,0.04863,88757.0,88753.0,0.000138]
[1767177105111,0.01128,88758.0,88757.0,0.000412]
[1767177105315,0.01126671,88757.0,88752.0,9.5e-07]
[1767177105512,0.00451122,88756.0,88752.0,9.5e-07]
[1767177106763,0.00396122,88756.0,88752.0,9.5e-07]
[1767177111250,0.00396122,88756.0,88753.0,0.04581]
[1767177111384,0.01132,88757.0,88753.0,0.04581]
[1767177111734,0.01132,88757.0,88752.0,9.5e-07]
[1767177113681,0.02258671,88757.0,88752.0,9.5e-07]
[1767177114756,0.01126697,88755.0,88752.0,9.5e-07]
[1767177115821,0.01126684,88756.0,88752.0,9.5e-07]
[1767177116025,0.01126697,88755.0,88752.0,9.5e-07]
[1767177116827,0.05633589,88754.0,88752.0,9.5e-07]
[1767177117850,0.10496589,88754.0,88752.0,9.5e-07]
[1767177119395,0.05633589,88754.0,88752.0,9.5e-07]
[1767177120664,0.0105592,88753.0,88752.0,9.5e-07]
[1767177122489,0.0591892,88753.0,88752.0,9.5e-07]
[1767177123071,0.0105592,88753.0,88752.0,9.5e-07]
[1767177124512,0.01057232,88753.0,88752.0,9.5e-07]
[1767177126682,0.05633589,88754.0,88752.0,9.5e-07]
[1767177129572,0.05633596,88754.0,88752.0,9.5e-07]
[1767177129773,0.06760233,88755.0,88752.0,9.5e-07]
[1767177130025,0.01057377,88754.0,88752.0,9.5e-07]
[1767177130204,0.06760233,88755.0,88752.0,9.5e-07]
[1767177130370,0.01057371,88754.0,88752.0,9.5e-07]
[1767177130569,0.06760233,88755.0,88752.0,9.5e-07]
[1767177130807,0.06690976,88754.0,88752.0,9.5e-07]
[1767177130987,0.05633602,88754.0,88752.0,9.5e-07]
[1767177132324,0.01132,88757.0,88752.0,9.5e-07]
[1767177132489,0.0218406,88756.0,88752.0,9.5e-07]
[1767177132827,0.01126697,88755.0,88752.0,9.5e-07]
[1767177133274,0.01132,88757.0,88752.0,9.5e-07]
[1767177135668,0.01132,88756.0,88753.0,0.04805]
[1767177135858,0.01126608,88762.0,88753.0,0.04711394]
[1767177136057,0.01132,88761.0,88753.0,0.04711394]
[1767177136813,0.0225862,88761.0,88753.0,0.04711394]
[1767177137022,0.01126633,88760.0,88753.0,0.04711394]
[1767177138476,0.01132,88761.0,88753.0,0.04711394]
[1767177139392,0.0225862,88761.0,88753.0,0.04711394]
[1767177139534,0.01132,88761.0,88753.0,0.04711394]
[1767177139942,0.01132,88760.0,88753.0,0.04711394]
[1767177140559,0.01132,88759.0,88753.0,0.04711394]
[1767177141593,0.01132,88758.0,88753.0,0.04711394]
[1767177143392,0.01126608,88762.0,88753.0,0.04711394]
[1767177143559,0.01132,88761.0,88753.0,0.04711394]
[1767177143987,0.01132,88760.0,88753.0,0.04711394]
[1767177144950,0.01132,88759.0,88753.0,0.04711394]
[1767177145164,0.01132,88758.0,88753.0,0.04711394]
[1767177145300,7.974e-05,88763.0,88753.0,0.04711394]
[1767177145636,0.01132,88762.0,88753.0,0.04711394]
[1767177146542,0.01132,88761.0,88753.0,0.04711394]
[1767177149405,7.974e-05,88763.0,88753.0,0.04711394]
[1767177149629,0.01134569,88763.0,88753.0,0.04711394]
[1767177149808,0.02258608,88762.0,88753.0,0.04711394]
[1767177150214,0.0112662,88761.0,88753.0,0.04711394]
[1767177150417,0.01134569,88763.0,88753.0,0.04711394]
[1767177150626,0.01132,88760.0,88753.0,0.04711394]